{"text_format":"1","workbook":"xlsx","n_sheets":5,"sheets":["kabinet B8 + chodba","kabinet B8 + 2 chodby","kabinet B8 + 2 x chodba","Seznam a specifikace","List1"],"not_rendered":{"charts":0,"images":5,"macros":0,"external_links":0,"defined_names":0,"comments":0,"pivot_tables":0},"unopened":[],"bounds":{"document_bytes":16777216,"sheet_cells":100000,"rows_first":2000,"rows_last":500,"rows_between":2000,"halvings":0,"cell_chars":16384,"cell_head_chars":4096},"cells_cut":0,"cells_raw":0,"read":"whole","date_system":"1900"}

{"sheet":"kabinet B8 + chodba","index":0,"n_rows":21,"n_cols":6,"rows_kept":21,"cut":false,"hidden":true,"merged":[]}
["Kabinet B8 + chodba"]
[]
["č. pol.","název","počet ks","popis","cena s DPH/ks","cena celkem"]
[1,"pracovní stoly 1",4,"Rozměry stolu - šířka 140 cm, hloubka 60 cm, výška 75,5 cm, barva olše.\nPracovní deska tloušťky 25 mm po celém obvodě opatřena 2 mm ABS hranou.\nKabelové průchodky pro svedení kabelů pod pracovní desku umístit do středu stolu.\nPodnož z plných desek tloušťky 18 mm s 2 mm ABS hranou na vnější i vnitřní straně.\nNohy osazeny výškovou rektifikací pro vyrovnání až 1,5 cm nerovností.\nSvislá příčka, tzv. trnož, spojující obě nohy pro zajištění dokonalé stability stolu, tloušťka 18 mm s 1 mm ABS hranou.",4800,{"$f":"E4*C4","v":19200}]
[2,"stolová nástavba 1 ",4,"Rozměry stolové nástavby šířka 140 cm, hloubka 24 cm, výška 30 cm, plné desky barva olše s 2 mm ABS hranou.\nNástavba rozdělena vodorovně na dvě části, horní část rozdělen na tři stejné prostory.\nNástavba z plných desek tloušťky 18 mm s 2 mm ABS hranou na vnější i vnitřní straně.",1500,{"$f":"E5*C5","v":6000}]
[3,"kancelářské kontejnery ",6,"4 zásuvky podél 60 cm - šířka 40 cm, hloubka 60 cm, výška 60 cm\nKorpus a čela zásuvek o tloušťce 18 mm, horní deska o tloušťce 25 mm, viditelné hrany 2 mm ABS, vše v barvě olše, centrální zamykání (stačí zamknout jednu zásuvku a současně tak uzamknout i všechny ostatní), úchytky dokulata ",7800,46800]
[4,"skříň policová dvéřová ",5,"Korpus šířka 80 cm, hloubka 40 cm, výška 192 cm, plné desky barva olše,  půda i dno o tloušťce 25 mm a na přední straně 2 mm ABS hranou, ostatní viditelné hrany korpusu ABS hrany o tloušťce 1 mm, boky korpusů v tloušťce 18 mm, záda  6 mm, tloušťka samotných polic je 25 mm opatřena ABS hranou, základní výška úložného prostoru dle výšky standardního šanonu.\nPlné dvířka opatřené tlumiči dovírání dveří uzavírají první dva a poslední dva prostory, tudíš prostřední prostor je bez dvířek.\nÚchytky zakulacené, stejné jako u šuplíků kontejnérů.",9800,49000]
[5,"skříň policová roletová ",2,"Skříň policová roletová levá, korpus šířka 80 cm, hloubka 40 cm, výška 76,8 cm.\nPůda i dno mají tloušťku 25 mm a na přední 2 mm ABS hranu, ostatní viditelné hrany korpusu jsou chráněny ABS hranou o tloušťce 1 mm, boky korpusů o tloušťce 18 mm, záda potom 6 mm, tloušťka polic 25 mm s 2 mm ABS hranou. \nSkříň je vodorovně rozdělena na stejnou výšku, skříň má roletové uzavírání.",7000,14000]
[6,"skříň šanonová výsuvná levá",2,"Korpus šířka 40 cm, hloubka 80 cm, výška 117,7 cm, plné desky barva olše,  půda i dno o tloušťce 25 mm a na levé straně 2 mm ABS hranou, ostatní viditelné hrany korpusu ABS hrany o tloušťce 1 mm, boky korpusů v tloušťce 18 mm, záda  6 mm, tloušťka samotných polic je 25 mm opatřena ABS hranou, základní výška úložného prostoru dle výšky standardního šanonu. Police jou výsuvné, přístupná z levé strany, pravá strana je korpusem 18 mm uzavřena.",12500,25000]
[7,"skříň šanonová výsuvná pravá",2,"Korpus šířka 40 cm, hloubka 80 cm, výška 117,7 cm, plné desky barva olše,  půda i dno o tloušťce 25 mm a na pravé straně 2 mm ABS hranou, ostatní viditelné hrany korpusu ABS hrany o tloušťce 1 mm, boky korpusů v tloušťce 18 mm, záda  6 mm, tloušťka samotných polic je 25 mm opatřena ABS hranou, základní výška úložného prostoru dle výšky standardního šanonu. Police jsou výsuvné, přístupná z pravé strany, levá strana je korpusem 18 mm uzavřena.",12500,25000]
[8,"šatní skříň ",2,"Korpus šířka 80 cm, hloubka 60 cm, výška 192 cm, plné desky barva olše,  půda i dno o tloušťce 25 mm a na přední straně 2 mm ABS hranou, ostatní viditelné hrany korpusu ABS hrany o tloušťce 1 mm, boky korpusů v tloušťce 18 mm, záda  6 mm, tloušťka police je 25 mm opatřena ABS hranou,základní výška jednoho úložného prostoru dle výšky standardního šanonu je v horní části skříně, pod ním je šatní tyč.\nPlné dvířka opatřené tlumiči dovírání dveří, úchytky zakulacené.",11200,22400]
[9,"věšáková stěna",1,"Korpus šířka 40 cm, tloušťka 12 cm, výška 185 cm, plné desky barva olše, hrany 2 mm ABS, na jedné straně 6 věšáků. ",1500,1500]
[10,"pracovní stoly 2",2,"Rozměry stolu - šířka 160 cm, hloubka 80 cm, výška 75,5 cm, barva olše.\nPracovní deska tloušťky 25 mm po celém obvodě opatřena 2 mm ABS hranou.\nKabelové průchodky pro svedení kabelů pod pracovní desku umístit do rohů stolů s ohledem to, že na stole bude stolová nástavba.\nPodnož z plných desek tloušťky 18 mm s 2 mm ABS hranou na vnější i vnitřní straně.\nNohy osazeny výškovou rektifikací pro vyrovnání až 1,5 cm nerovností.\nSvislá příčka, tzv. trnož, spojující obě nohy pro zajištění dokonalé stability stolu, tloušťka 18 mm s 1 mm ABS hranou.",5200,10400]
[11,"stolová nástavba 2",2,"Rozměry stolové nástavby šířka 160 cm, hloubka 24 cm, výška 30 cm, plné desky barva olše s 2 mm ABS hranou.\nNástavba rozdělena vodorovně na dvě části, horní část rozdělen na tři stejné prostory.\nNástavba z plných desek tloušťky 18 mm s 2 mm ABS hranou na vnější i vnitřní straně.",1700,3400]
[12,"kancelářské židle",2,"Otočná, stavitelná, s područkami, samonosná síťovina v opěradle, zesílený kovový chromovaný kříž pro vyšší zatížení s nosností až 140 kg, kolečka s měkčeným povrchem, sedák a opěrák lze zafixovat v požadované poloze, barva černá, s doporučenou dobou používání 8 hodin. ",4800,9600]
[]
[]
[null,null,null,null,"Cena celkem s DPH:",{"$f":"SUM(F4:F15)","v":232300}]
[null,null,null,null,null,0.21]
[]
[null,null,null,null,"Cena celkem bez DPH:",{"$f":"F18-(F18*F19)","v":183517}]

{"sheet":"kabinet B8 + 2 chodby","index":1,"n_rows":21,"n_cols":6,"rows_kept":21,"cut":false,"hidden":true,"merged":[]}
["Kabinet B8 + chodba"]
[]
["č. pol.","název","počet ks","popis","cena s DPH/ks","cena celkem"]
[1,"pracovní stoly 1",4,"Rozměry stolu - šířka 140 cm, hloubka 60 cm, výška 75,5 cm, barva olše.\nPracovní deska tloušťky 25 mm po celém obvodě opatřena 2 mm ABS hranou.\nKabelové průchodky pro svedení kabelů pod pracovní desku umístit do středu stolu.\nPodnož z plných desek tloušťky 18 mm s 2 mm ABS hranou na vnější i vnitřní straně.\nNohy osazeny výškovou rektifikací pro vyrovnání až 1,5 cm nerovností.\nSvislá příčka, tzv. trnož, spojující obě nohy pro zajištění dokonalé stability stolu, tloušťka 18 mm s 1 mm ABS hranou.",4800,{"$f":"E4*C4","v":19200}]
[2,"stolová nástavba 1 ",4,"Rozměry stolové nástavby šířka 140 cm, hloubka 24 cm, výška 30 cm, plné desky barva olše s 2 mm ABS hranou.\nNástavba rozdělena vodorovně na dvě části, horní část rozdělen na tři stejné prostory.\nNástavba z plných desek tloušťky 18 mm s 2 mm ABS hranou na vnější i vnitřní straně.",1500,{"$f":"E5*C5","v":6000}]
[3,"kancelářské kontejnery ",8,"4 zásuvky podél 60 cm - šířka 40 cm, hloubka 60 cm, výška 60 cm\nKorpus a čela zásuvek o tloušťce 18 mm, horní deska o tloušťce 25 mm, viditelné hrany 2 mm ABS, vše v barvě olše, centrální zamykání (stačí zamknout jednu zásuvku a současně tak uzamknout i všechny ostatní), úchytky dokulata ",7800,62400]
[4,"skříň policová dvéřová ",6,"Korpus šířka 80 cm, hloubka 40 cm, výška 192 cm, plné desky barva olše,  půda i dno o tloušťce 25 mm a na přední straně 2 mm ABS hranou, ostatní viditelné hrany korpusu ABS hrany o tloušťce 1 mm, boky korpusů v tloušťce 18 mm, záda  6 mm, tloušťka samotných polic je 25 mm opatřena ABS hranou, základní výška úložného prostoru dle výšky standardního šanonu.\nPlné dvířka opatřené tlumiči dovírání dveří uzavírají první dva a poslední dva prostory, tudíš prostřední prostor je bez dvířek.\nÚchytky zakulacené, stejné jako u šuplíků kontejnérů.",9800,58800]
[5,"skříň policová roletová ",2,"Skříň policová roletová levá, korpus šířka 80 cm, hloubka 40 cm, výška 76,8 cm.\nPůda i dno mají tloušťku 25 mm a na přední 2 mm ABS hranu, ostatní viditelné hrany korpusu jsou chráněny ABS hranou o tloušťce 1 mm, boky korpusů o tloušťce 18 mm, záda potom 6 mm, tloušťka polic 25 mm s 2 mm ABS hranou. \nSkříň je vodorovně rozdělena na stejnou výšku, skříň má roletové uzavírání.",7000,14000]
[6,"skříň šanonová výsuvná levá",2,"Korpus šířka 40 cm, hloubka 80 cm, výška 117,7 cm, plné desky barva olše,  půda i dno o tloušťce 25 mm a na levé straně 2 mm ABS hranou, ostatní viditelné hrany korpusu ABS hrany o tloušťce 1 mm, boky korpusů v tloušťce 18 mm, záda  6 mm, tloušťka samotných polic je 25 mm opatřena ABS hranou, základní výška úložného prostoru dle výšky standardního šanonu. Police jou výsuvné, přístupná z levé strany, pravá strana je korpusem 18 mm uzavřena.",12500,25000]
[7,"skříň šanonová výsuvná pravá",2,"Korpus šířka 40 cm, hloubka 80 cm, výška 117,7 cm, plné desky barva olše,  půda i dno o tloušťce 25 mm a na pravé straně 2 mm ABS hranou, ostatní viditelné hrany korpusu ABS hrany o tloušťce 1 mm, boky korpusů v tloušťce 18 mm, záda  6 mm, tloušťka samotných polic je 25 mm opatřena ABS hranou, základní výška úložného prostoru dle výšky standardního šanonu. Police jsou výsuvné, přístupná z pravé strany, levá strana je korpusem 18 mm uzavřena.",12500,25000]
[8,"šatní skříň ",3,"Korpus šířka 80 cm, hloubka 60 cm, výška 192 cm, plné desky barva olše,  půda i dno o tloušťce 25 mm a na přední straně 2 mm ABS hranou, ostatní viditelné hrany korpusu ABS hrany o tloušťce 1 mm, boky korpusů v tloušťce 18 mm, záda  6 mm, tloušťka police je 25 mm opatřena ABS hranou,základní výška jednoho úložného prostoru dle výšky standardního šanonu je v horní části skříně, pod ním je šatní tyč.\nPlné dvířka opatřené tlumiči dovírání dveří, úchytky zakulacené.",11200,33600]
[9,"věšáková stěna",1,"Korpus šířka 40 cm, tloušťka 12 cm, výška 185 cm, plné desky barva olše, hrany 2 mm ABS, na jedné straně 6 věšáků. ",1500,1500]
[10,"pracovní stoly 2",4,"Rozměry stolu - šířka 160 cm, hloubka 80 cm, výška 75,5 cm, barva olše.\nPracovní deska tloušťky 25 mm po celém obvodě opatřena 2 mm ABS hranou.\nKabelové průchodky pro svedení kabelů pod pracovní desku umístit do rohů stolů s ohledem to, že na stole bude stolová nástavba.\nPodnož z plných desek tloušťky 18 mm s 2 mm ABS hranou na vnější i vnitřní straně.\nNohy osazeny výškovou rektifikací pro vyrovnání až 1,5 cm nerovností.\nSvislá příčka, tzv. trnož, spojující obě nohy pro zajištění dokonalé stability stolu, tloušťka 18 mm s 1 mm ABS hranou.",5200,20800]
[11,"stolová nástavba 2",4,"Rozměry stolové nástavby šířka 160 cm, hloubka 24 cm, výška 30 cm, plné desky barva olše s 2 mm ABS hranou.\nNástavba rozdělena vodorovně na dvě části, horní část rozdělen na tři stejné prostory.\nNástavba z plných desek tloušťky 18 mm s 2 mm ABS hranou na vnější i vnitřní straně.",1700,6800]
[12,"kancelářské židle",2,"Otočná, stavitelná, s područkami, samonosná síťovina v opěradle, zesílený kovový chromovaný kříž pro vyšší zatížení s nosností až 140 kg, kolečka s měkčeným povrchem, sedák a opěrák lze zafixovat v požadované poloze, barva černá, s doporučenou dobou používání 8 hodin. ",4800,9600]
[]
[]
[null,null,null,null,"Cena celkem s DPH:",{"$f":"SUM(F4:F15)","v":282700}]
[null,null,null,null,null,0.21]
[]
[null,null,null,null,"Cena celkem bez DPH:",{"$f":"F18-(F18*F19)","v":223333}]

{"sheet":"kabinet B8 + 2 x chodba","index":2,"n_rows":26,"n_cols":6,"rows_kept":26,"cut":false,"hidden":true,"merged":[]}
["Kabinet B8 + chodba"]
[]
["č. pol.","název","počet ks","popis","cena s DPH/ks","cena celkem"]
[1,"pracovní stoly 1",4,"Rozměry stolu - šířka 140 cm, hloubka 60 cm, výška 75,5 cm, barva olše.\nPracovní deska tloušťky 25 mm po celém obvodě opatřena 2 mm ABS hranou.\nKabelové průchodky pro svedení kabelů pod pracovní desku umístit do středu stolu.\nPodnož z plných desek tloušťky 18 mm s 2 mm ABS hranou na vnější i vnitřní straně.\nNohy osazeny výškovou rektifikací pro vyrovnání až 1,5 cm nerovností.\nSvislá příčka, tzv. trnož, spojující obě nohy pro zajištění dokonalé stability stolu, tloušťka 18 mm s 1 mm ABS hranou.",4800,{"$f":"E4*C4","v":19200}]
[2,"stolová nástavba 1 ",4,"Rozměry stolové nástavby šířka 140 cm, hloubka 24 cm, výška 30 cm, plné desky barva olše s 2 mm ABS hranou.\nNástavba rozdělena vodorovně na dvě části, horní část rozdělen na tři stejné prostory.\nNástavba z plných desek tloušťky 18 mm s 2 mm ABS hranou na vnější i vnitřní straně.",1500,{"$f":"E5*C5","v":6000}]
[3,"kancelářské kontejnery 1",7,"4 zásuvky podél 60 cm - šířka 40 cm, hloubka 60 cm, výška 60 cm\nKorpus a čela zásuvek o tloušťce 18 mm, horní deska o tloušťce 25 mm, viditelné hrany 2 mm ABS, vše v barvě olše, centrální zamykání (stačí zamknout jednu zásuvku a současně tak uzamknout i všechny ostatní), úchytky dokulata ",7800,54600]
[4,"kancelářské kontejnery 2",2,"4 zásuvky podél 60 cm - šířka 40 cm, hloubka 60 cm, výška 60 cm\nKorpus a čela zásuvek o tloušťce 18 mm, horní deska o tloušťce 25 mm, viditelné hrany 2 mm ABS, vše v barvě třešeň, centrální zamykání (stačí zamknout jednu zásuvku a současně tak uzamknout i všechny ostatní), úchytky dokulata ",7800,15600]
[5,"skříň policová dvéřová ",4,"Korpus šířka 80 cm, hloubka 40 cm, výška 192 cm, plné desky barva olše,  půda i dno o tloušťce 25 mm a na přední straně 2 mm ABS hranou, ostatní viditelné hrany korpusu ABS hrany o tloušťce 1 mm, boky korpusů v tloušťce 18 mm, záda  6 mm, tloušťka samotných polic je 25 mm opatřena ABS hranou, základní výška úložného prostoru dle výšky standardního šanonu.\nPlné dvířka opatřené tlumiči dovírání dveří uzavírají první dva a poslední dva prostory, tudíš prostřední prostor je bez dvířek.\nÚchytky zakulacené, stejné jako u šuplíků kontejnérů.",9800,39200]
[6,"skříň policová dvéřová ",1,"Korpus šířka 80 cm, hloubka 40 cm, výška 192 cm, plné desky barva třešeň,  půda i dno o tloušťce 25 mm a na přední straně 2 mm ABS hranou, ostatní viditelné hrany korpusu ABS hrany o tloušťce 1 mm, boky korpusů v tloušťce 18 mm, záda  6 mm, tloušťka samotných polic je 25 mm opatřena ABS hranou, základní výška úložného prostoru dle výšky standardního šanonu.\nPlné dvířka opatřené tlumiči dovírání dveří uzavírají první dva a poslední dva prostory, tudíš prostřední prostor je bez dvířek.\nÚchytky zakulacené, stejné jako u šuplíků kontejnérů.",9800,9800]
[7,"skříň policová roletová ",1,"Skříň policová roletová levá, korpus šířka 80 cm, hloubka 40 cm, výška 76,8 cm.\nPůda i dno mají tloušťku 25 mm a na přední 2 mm ABS hranu, ostatní viditelné hrany korpusu jsou chráněny ABS hranou o tloušťce 1 mm, boky korpusů o tloušťce 18 mm, záda potom 6 mm, tloušťka polic 25 mm s 2 mm ABS hranou. \nSkříň je vodorovně rozdělena na stejnou výšku, skříň má roletové uzavírání.",7000,7000]
[8,"polička",1,"Šířka: 80 cm, výška: 24 cm, délka: 24 cm, maximální nosnost je 10 kg, plné desky barva olše, všechny viditelné hrany opatřeny ABS hranou",2500,2500]
[9,"skříň šanonová výsuvná levá",2,"Korpus šířka 40 cm, hloubka 80 cm, výška 117,7 cm, plné desky barva olše,  půda i dno o tloušťce 25 mm a na levé straně 2 mm ABS hranou, ostatní viditelné hrany korpusu ABS hrany o tloušťce 1 mm, boky korpusů v tloušťce 18 mm, záda  6 mm, tloušťka samotných polic je 25 mm opatřena ABS hranou, základní výška úložného prostoru dle výšky standardního šanonu. Police jou výsuvné, přístupná z levé strany, pravá strana je korpusem 18 mm uzavřena.",12500,25000]
[10,"skříň šanonová výsuvná pravá",2,"Korpus šířka 40 cm, hloubka 80 cm, výška 117,7 cm, plné desky barva olše,  půda i dno o tloušťce 25 mm a na pravé straně 2 mm ABS hranou, ostatní viditelné hrany korpusu ABS hrany o tloušťce 1 mm, boky korpusů v tloušťce 18 mm, záda  6 mm, tloušťka samotných polic je 25 mm opatřena ABS hranou, základní výška úložného prostoru dle výšky standardního šanonu. Police jsou výsuvné, přístupná z pravé strany, levá strana je korpusem 18 mm uzavřena.",12500,25000]
[11,"šatní skříň ",2,"Korpus šířka 80 cm, hloubka 60 cm, výška 192 cm, plné desky barva olše,  půda i dno o tloušťce 25 mm a na přední straně 2 mm ABS hranou, ostatní viditelné hrany korpusu ABS hrany o tloušťce 1 mm, boky korpusů v tloušťce 18 mm, záda  6 mm, tloušťka police je 25 mm opatřena ABS hranou,základní výška jednoho úložného prostoru dle výšky standardního šanonu je v horní části skříně, pod ním je šatní tyč.\nPlné dvířka opatřené tlumiči dovírání dveří, úchytky zakulacené.",11200,22400]
[12,"šatní skříň ",1,"Korpus šířka 80 cm, hloubka 60 cm, výška 192 cm, plné desky barva třešeň půda i dno o tloušťce 25 mm a na přední straně 2 mm ABS hranou, ostatní viditelné hrany korpusu ABS hrany o tloušťce 1 mm, boky korpusů v tloušťce 18 mm, záda  6 mm, tloušťka police je 25 mm opatřena ABS hranou,základní výška jednoho úložného prostoru dle výšky standardního šanonu je v horní části skříně, pod ním je šatní tyč.\nPlné dvířka opatřené tlumiči dovírání dveří, úchytky zakulacené.",11200,11200]
[13,"věšáková stěna",1,"Korpus šířka 40 cm, tloušťka 12 cm, výška 185 cm, plné desky barva olše, hrany 2 mm ABS, na jedné straně 7 věšáků. ",1500,1500]
[14,"pracovní stoly 2",3,"Rozměry stolu - šířka 120 cm, hloubka 80 cm, výška 75,5 cm, barva olše.\nPracovní deska tloušťky 25 mm po celém obvodě opatřena 2 mm ABS hranou.\nKabelové průchodky pro svedení kabelů pod pracovní desku umístit do rohů stolů s ohledem to, že na stole bude stolová nástavba.\nPodnož z plných desek tloušťky 18 mm s 2 mm ABS hranou na vnější i vnitřní straně.\nNohy osazeny výškovou rektifikací pro vyrovnání až 1,5 cm nerovností.\nSvislá příčka, tzv. trnož, spojující obě nohy pro zajištění dokonalé stability stolu, tloušťka 18 mm s 1 mm ABS hranou.",4300,12900]
[15,"pracovní stoly 3",2,"Rozměry stolu - šířka 120 cm, hloubka 80 cm, výška 75,5 cm, barva třešeň.\nPracovní deska tloušťky 25 mm po celém obvodě opatřena 2 mm ABS hranou.\nKabelové průchodky pro svedení kabelů pod pracovní desku umístit do rohů stolů s ohledem to, že na stole bude stolová nástavba.\nPodnož z plných desek tloušťky 18 mm s 2 mm ABS hranou na vnější i vnitřní straně.\nNohy osazeny výškovou rektifikací pro vyrovnání až 1,5 cm nerovností.\nSvislá příčka, tzv. trnož, spojující obě nohy pro zajištění dokonalé stability stolu, tloušťka 18 mm s 1 mm ABS hranou.",4300,8600]
[16,"stolová nástavba 2",3,"Rozměry stolové nástavby šířka 120 cm, hloubka 24 cm, výška 30 cm, plné desky barva olše s 2 mm ABS hranou.\nNástavba rozdělena vodorovně na dvě části, horní část rozdělen na dva stejné prostory.\nNástavba z plných desek tloušťky 18 mm s 2 mm ABS hranou na vnější i vnitřní straně.",1400,4200]
[17,"kancelářské židle",5,"Otočná, stavitelná, s područkami, samonosná síťovina v opěradle, zesílený kovový chromovaný kříž pro vyšší zatížení s nosností až 140 kg, kolečka s měkčeným povrchem, sedák a opěrák lze zafixovat v požadované poloze, barva černá, s doporučenou dobou používání 8 hodin. ",4800,24000]
[]
[]
[null,null,null,null,"Cena celkem s DPH:",{"$f":"SUM(F4:F20)","v":288700}]
[null,null,null,null,null,0.21]
[]
[null,null,null,null,"Cena celkem bez DPH:",{"$f":"F23-(F23*F24)","v":228073}]

{"sheet":"Seznam a specifikace","index":3,"n_rows":11,"n_cols":7,"rows_kept":11,"cut":false,"hidden":false,"merged":[]}
["VŘ Dodávka a montáž kovového nábytku do haly 2024 - Příloha č.1 - Seznam položek a technická specifikace"]
[]
["Název","Popis","Počet\nks","Cena za ks\nbez DPH","Cena celkem\nbez DPH",null,"Kód zboží dodavatele + odkaz na produkt"]
["Policová plechová skříň","Minimální rozměry: 80 x 38 x 185 cm \nBarevné provedení: viz foto, povrchová úprava práškovou barvou, dveře modrá RAL 5012, tělo skříně šedá RAL 7035\nPopis: Kovová skříň svařovaná z ocelového plechu tl. 0,5 mm. Dvoudveřová skříň s vyztuženými křídly dveří, vnitřní závěsy. Uzavírání bezpečnostním pákovým rozvorovým mechanismem. Cylindrický značkový zámek, 2 klíče. 4 lakované police, minimální nosnost 50 kg, výšková přestavitelnost polic v kroku 35 mm. \nPožadována montáž na místě!",10,null,{"$f":"C4*D4","v":0},{"$error":"#VALUE!"}]
["Kovová skříňka na nářadí","Minimální rozměry: 90 x 45 x 110 cm\nBarevné provedení: viz foto, povrchová úprava práškovou barvou, dveře modrá RAL 5012, tělo skříně šedá RAL 7035\nPopis: Kovová skříň svařovaná z ocelového plechu tl. 0,6 - 1 mm. Dvoudveřová skříň s vyztuženými křídly dveří, vnitřní závěsy. Cylindrický značkový zámek, 2 klíče. 1 lakované police, minimální nosnost 40 kg. 3 zásuvky na nářadí. Horní deska opatřena ochranou gumou.\nPožadována montáž na místě!",5,null,{"$f":"C5*D5","v":0},{"$error":"#VALUE!"}]
["Dílenská skříň na nářadí","Minimální rozměry: 90 x 45 x 110 cm\nBarevné provedení: viz foto, povrchová úprava práškovou barvou, dveře modrá RAL 5012, tělo skříně šedá RAL 7035\nPopis: Kovová skříň svařovaná z ocelového plechu tl. 0,6 - 1 mm. Dvoudveřová skříň s vyztuženými křídly dveří, vnitřní závěsy. Cylindrický značkový zámek, 2 klíče. 2 lakované police, minimální nosnost 40 kg. Horní deska opatřena ochranou gumou.\nPožadována montáž na místě!",3,null,{"$f":"C6*D6","v":0},{"$error":"#VALUE!"}]
["Dílenská univerzální skříň","Minimální rozměry: 90 x 60 x 190 cm\nBarevné provedení: viz foto, povrchová úprava práškovou barvou, dveře modrá RAL 5012, tělo skříně šedá RAL 7035\nPopis: Kovová skříň svařovaná z ocelového plechu. Dvoudveřová skříň s vyztuženými křídly dveří. Cylindrický značkový zámek, 2 klíče. 2 lakované police, minimální nosnost 100 kg, výšková přestavitelnost polic v kroku 25 mm. na vnitřní straně dveří a v zadní stěně je perforace pro instalaci držáků nářadí\nPožadována montáž na místě!",3,null,{"$f":"C7*D7","v":0},{"$error":"#VALUE!"}]
["Dílenský stůl (ponk)","Minimální rozměry: 140 x 60 x 80 cm\nBarevné provedení: viz foto, povrchová úprava práškovou barvou, konstrukce stolu šedá RAL 7035, zásuvky modrá RAL 5012\nPopis: dílenský stůl/ponk s výztuhou, která zpevňuje stůl v horizontální rovině. Rozměry min. d x š x v = 140 x 60 x 80 cm. Nosnost stolu minimálně 500 kg při rovnoměrně rozloženém zatížení. Podnoží svařené z ocelových profilů tl. min 2,2 mm. Pracovní plocha z kvalitní bukové spárovky tl. min 40 mm (bez povrchové úpravy). Všechny horní hrany zaobleny (r = 3 mm). Možnost ukotvení stolu k podlaze. 1 závěsná skříňka a 10 zásuvek na nářadí na pojezdech na kuličkových ložiscích s až 100% výsuvem, uzamykatelné centrálním cylindrickým zámkem se dvěma klíči.\nPožadována montáž na místě!",3,null,{"$f":"C8*D8","v":0},{"$error":"#VALUE!"}]
[null,null,null,"Cena celkem bez DPH",{"$f":"SUM(E7:E8)","v":0}]
["Termín dodání:","červenec - srpen 2024"]
["Záruka na nábytek:","5 let"]

{"sheet":"List1","index":4,"n_rows":2,"n_cols":1,"rows_kept":2,"cut":false,"hidden":true,"merged":[]}
[" "]
["  https://www.nabytek-forliving.cz/otevrena-police-80-cm.html?v=v=2031867&gclid=CjwKCAjw4ayUBhA4EiwATWyBrj_1JvipS-_RHubnmw6XHESQYGvJN9dIYGlrH2iIN5_R-r_4NllB8hoCFbwQAvD_BwE"]